fUSD/lending_fUSD_20240729
["ID","MTS","AMOUNT","RATE_DAILY","PERIOD"]
[333618038,1722288634279,-500.0,0.00010998,2]
[333618039,1722288634289,-500.79432705,0.00010998,2]
[333618040,1722288634300,-500.0,0.00010998,2]
[333618041,1722288634309,-500.0,0.00010998,2]
[333618042,1722288634318,-500.0,0.00010998,2]
[333618043,1722288634328,-1411.11,0.00010998,2]
[333618044,1722288634339,-500.0,0.00010998,2]
[333618045,1722288634349,-500.0,0.00010998,2]
[333618046,1722288634359,-500.0,0.00010998,2]
[333618047,1722288634368,-500.0,0.00010998,2]
[333618048,1722288634378,-500.0,0.00010998,2]
[333618049,1722288634388,-500.0,0.00010998,2]
[333618050,1722288634397,-268.7113578,0.00010998,2]
[333618051,1722288634407,-500.84793812,0.00010998,2]
[333618052,1722288634416,-500.0,0.00010998,2]
[333618053,1722288634426,-500.0,0.00010998,2]
[333618054,1722288634435,-500.0,0.00010998,2]
[333618055,1722288634445,-500.0,0.00010998,2]
[333618056,1722288634454,-500.0,0.00010998,2]
[333618057,1722288634464,-500.0,0.00010998,2]
[333618058,1722288634473,-297.86227133,0.00010998,2]
[333618059,1722288634483,-500.0,0.00010998,2]
[333618060,1722288634492,-500.0,0.00010998,2]
[333618061,1722288634501,-449.21642843,0.00010998,2]
[333618062,1722288634511,-497.3,0.00010998,2]
[333618063,1722288634520,-500.0,0.00010998,2]
[333618064,1722288634529,-558.2210348,0.00010998,2]
[333618065,1722288634539,-500.0,0.00010998,2]
[333618066,1722288634551,-536.23960738,0.00010998,2]
[333618067,1722288634561,-500.0,0.00010998,2]
[333618068,1722288634570,-500.0,0.00010998,2]
[333618069,1722288634580,-280.90466451,0.00010998,2]
[333618070,1722288634590,-500.0,0.00010998,2]
[333618071,1722288634601,-500.0,0.00010998,2]
[333618072,1722288634611,-500.0,0.00010998,2]
[333618073,1722288634620,-500.0,0.00010998,2]
[333618074,1722288634630,-500.0,0.00010998,2]
[333618075,1722288634640,-500.0,0.00010998,2]
[333618076,1722288634649,-500.0,0.00010998,2]
[333618077,1722288634659,-500.0,0.00010998,2]
[333618078,1722288634668,-591.75372072,0.00010998,2]
[333618079,1722288634678,-500.0,0.00010998,2]
[333618080,1722288634688,-500.0,0.00010998,2]
[333618081,1722288634697,-500.0,0.00010998,2]
[333618082,1722288634707,-500.0,0.00010998,2]
[333618083,1722288634717,-500.0,0.00010998,2]
[333618084,1722288634726,-445.59649558,0.00010998,2]
[333618085,1722288634736,-500.0,0.00010998,2]
[333618086,1722288634745,-500.0,0.00010998,2]
[333618087,1722288634755,-500.0,0.00010998,2]
[333618088,1722288634765,-500.0,0.00010998,2]
[333618089,1722288634963,-281.23,0.00010999,2]
[333618090,1722288634977,-500.0,0.00010999,2]
[333618091,1722288634986,-248.36,0.00010999,2]
[333618092,1722288634996,-517.03,0.00010999,2]
[333618093,1722288635006,-500.0,0.00010999,2]
[333618094,1722288635015,-217.63,0.00010999,2]
[333618095,1722288635024,-602.24,0.00010999,2]
[333618096,1722288635034,-468.02,0.00010999,2]
[333618097,1722288635043,-500.0,0.00010999,2]
[333618098,1722288635054,-377.56,0.00010999,2]
[333618099,1722288635063,-500.0,0.00010999,2]
[333618100,1722288635072,-597.23,0.00010999,2]
[333618101,1722288635082,-189.3,0.00010999,2]
[333618102,1722288635091,-500.0,0.00010999,2]
[333618103,1722288635101,-500.0,0.00010999,2]
[333618104,1722288635111,-500.0,0.00010999,2]
[333618105,1722288635120,-271.60354152,0.00010999,2]
[333618106,1722288635129,-500.0,0.00010999,2]
[333618107,1722288635139,-546.23,0.00010999,2]
[333618108,1722288635148,-425.24,0.00010999,2]
[333618109,1722288635158,-212.85,0.00010999,2]
[333618110,1722288635168,-500.0,0.00010999,2]
[333618111,1722288635183,-500.0,0.00010999,2]
[333618112,1722288635192,-500.0,0.00010999,2]
[333618113,1722288635201,-500.0,0.00010999,2]
[333618114,1722288635211,-500.0,0.00010999,2]
[333618115,1722288635220,-500.0,0.00010999,2]
[333618116,1722288635229,-500.0,0.00010999,2]
[333618117,1722288635238,-500.0,0.00010999,2]
[333618118,1722288635247,-500.0,0.00010999,2]
[333618119,1722288635256,-589.38,0.00010999,2]
[333618120,1722288635266,-500.0,0.00010999,2]
[333618121,1722288635275,-500.0,0.00010999,2]
[333618122,1722288635284,-235.51,0.00010999,2]
[333618123,1722288635293,-500.0,0.00010999,2]
[333618124,1722288635304,-500.0,0.00010999,2]
[333618125,1722288635313,-500.0,0.00010999,2]
[333618126,1722288635323,-500.0,0.00010999,2]
[333618127,1722288635332,-500.0,0.00010999,2]
[333618128,1722288635342,-386.94,0.00010999,2]
[333618129,1722288635351,-500.0,0.00010999,2]
[333618130,1722288635360,-500.0,0.00010999,2]
[333618131,1722288635370,-443.24,0.00010999,2]
[333618132,1722288635379,-500.0,0.00010999,2]
[333618133,1722288635388,-500.0,0.00010999,2]
[333618134,1722288635398,-500.0,0.00010999,2]
[333618135,1722288635407,-500.0,0.00010999,2]
[333618136,1722288635416,-6142.6917066,0.00010999,2]
[333618137,1722288635425,-500.0,0.00010999,2]
[333618138,1722288635434,-500.0,0.00010999,2]
[333618139,1722288635444,-500.0,0.00010999,2]
[333618140,1722288635453,-500.0,0.00010999,2]
[333618141,1722288635462,-500.0,0.00010999,2]
[333618142,1722288635471,-299.48,0.00010999,2]
[333618143,1722288635481,-500.0,0.00010999,2]
[333618144,1722288635490,-500.0,0.00010999,2]
[333618145,1722288635500,-500.0,0.00010999,2]
[333618146,1722288635509,-500.0,0.00010999,2]
[333618147,1722288635518,-500.0,0.00010999,2]
[333618148,1722288635527,-500.0,0.00010999,2]
[333618149,1722288635536,-500.0,0.00010999,2]
[333618150,1722288635546,-500.0,0.00010999,2]
[333618151,1722288635557,-500.0,0.00010999,2]
[333618152,1722288635567,-500.0,0.00010999,2]
[333618153,1722288635576,-500.0,0.00010999,2]
[333618154,1722288635585,-380.76,0.00010999,2]
[333618155,1722288635595,-500.0,0.00010999,2]
[333618156,1722288635604,-500.0,0.00010999,2]
[333618157,1722288635614,-500.0,0.00010999,2]
[333618158,1722288635623,-500.0,0.00010999,2]
[333618159,1722288635632,-500.0,0.00010999,2]
[333618160,1722288635641,-264.08,0.00010999,2]
[333618161,1722288635650,-500.0,0.00010999,2]
[333618162,1722288635659,-500.0,0.00010999,2]
[333618163,1722288635668,-231.94,0.00010999,2]
[333618164,1722288635677,-500.0,0.00010999,2]
[333618165,1722288635686,-500.0,0.00010999,2]
[333618166,1722288635696,-500.0,0.00010999,2]
[333618167,1722288635705,-500.0,0.00010999,2]
[333618168,1722288635714,-500.0,0.00010999,2]
[333618169,1722288635723,-500.0,0.00010999,2]
[333618170,1722288635733,-500.0,0.00010999,2]
[333618171,1722288635742,-500.0,0.00010999,2]
[333618172,1722288635751,-500.0,0.00010999,2]
[333618173,1722288635761,-500.0,0.00010999,2]
[333618174,1722288635770,-500.0,0.00010999,2]
[333618175,1722288635779,-425.08,0.00010999,2]
[333618176,1722288635789,-500.0,0.00010999,2]
[333618177,1722288635798,-1411.11,0.00010999,2]
[333618178,1722288635807,-1411.11,0.00010999,2]
[333618179,1722288635816,-1411.11,0.00010999,2]
[333618180,1722288635826,-1411.11,0.00010999,2]
[333618181,1722288635836,-1411.11,0.00010999,2]
[333618182,1722288635845,-1411.11,0.00010999,2]
[333618183,1722288635855,-1411.11,0.00010999,2]
[333618184,1722288635865,-1411.11,0.00010999,2]
[333618185,1722288635874,-1411.11,0.00010999,2]
[333618186,1722288635884,-456.10720911,0.00010999,2]
[333618187,1722288638233,-668.26312807,0.00010999,2]
[333618188,1722288638937,-286.73966282,0.00010999,2]
[333618189,1722288638947,-1411.11,0.00010999,2]
[333618190,1722288638955,-525.02008775,0.00010999,2]
[333618191,1722288638967,-886.08991225,0.00010999,2]
[333618192,1722288638976,-961.45872535,0.00010999,2]
[333618193,1722288638987,-449.65127465,0.00010999,2]
[333618194,1722288638997,-272.47249835,0.00010999,2]
[333618195,1722288639008,-1138.63750165,0.00010999,2]
[333618196,1722288639017,-1411.11,0.00010999,2]
[333618197,1722288639026,-638.35476502,0.00010999,2]
[333618198,1722288639036,-501.50777131,0.00010999,2]
[333618199,1722288639044,-1411.11,0.00010999,2]
[333618200,1722288639053,-1411.11,0.00010999,2]
[333618201,1722288639062,-1411.11,0.00010999,2]
[333618202,1722288639072,-1411.18379627,0.00010999,2]
[333618203,1722288639081,-500.0,0.00010999,2]
[333618204,1722288639090,-527.44810216,0.00010999,2]
[333618205,1722288639099,-498.6,0.00010999,2]
[333618206,1722288639108,-508.2592091,0.00010999,2]
[333618207,1722288639118,-371.50074061,0.00010999,2]
[333618208,1722288639127,-500.0,0.00010999,2]
[333618209,1722288639136,-500.0,0.00010999,2]
[333618210,1722288639145,-500.0,0.00010999,2]
[333618211,1722288639154,-153.89,0.00010999,2]
[333618212,1722288639163,-150.0,0.00010999,2]
[333618213,1722288639176,-150.0,0.00010999,2]
[333618214,1722288639186,-150.0,0.00010999,2]
[333618215,1722288639195,-150.0,0.00010999,2]
[333618216,1722288639204,-500.0,0.00010999,2]
[333618217,1722288639214,-500.0,0.00010999,2]
[333618218,1722288639223,-500.0,0.00010999,2]
[333618219,1722288639232,-500.0,0.00010999,2]
[333618220,1722288639242,-500.0,0.00010999,2]
[333618221,1722288639251,-500.0,0.00010999,2]
[333618222,1722288639261,-606.46,0.00010999,2]
[333618223,1722288639270,-500.0,0.00010999,2]
[333618225,1722288639279,-500.0,0.00010999,2]
[333618227,1722288639288,-500.0,0.00010999,2]
[333618229,1722288639297,-76.99008899,0.00010999,2]
[333618230,1722288639309,-464.58898707,0.00010999,2]
[333618231,1722288639324,-19.36092394,0.00010999,2]
[333618232,1722288639333,-525.81393704,0.00010999,2]
[333618233,1722288639342,-215.13,0.00010999,2]
[333618235,1722288639351,-481.05033006,0.00010999,2]
[333618236,1722288639361,-500.0,0.00010999,2]
[333618238,1722288639370,-500.0,0.00010999,2]
[333618240,1722288639379,-500.0,0.00010999,2]
[333618242,1722288639388,-500.0,0.00010999,2]
[333618244,1722288639397,-500.0,0.00010999,2]
[333618246,1722288639407,-500.0,0.00010999,2]
[333618247,1722288639416,-500.0,0.00010999,2]
[333618249,1722288639426,-500.0,0.00010999,2]
[333618251,1722288639435,-500.0,0.00010999,2]
[333618253,1722288639444,-416.91936216,0.00010999,2]
[333618255,1722288639454,-485.55398206,0.00010999,2]
[333618257,1722288639463,-500.0,0.00010999,2]
[333618259,1722288639472,-500.0,0.00010999,2]
[333618261,1722288639481,-361.54,0.00010999,2]
[333618263,1722288639491,-500.0,0.00010999,2]
[333618265,1722288639500,-297.93,0.00010999,2]
[333618267,1722288639510,-500.0,0.00010999,2]
[333618269,1722288639519,-500.0,0.00010999,2]
[333618271,1722288639529,-503.38022581,0.00010999,2]
[333618273,1722288639538,-500.0,0.00010999,2]
[333618275,1722288639546,-500.0,0.00010999,2]
[333618277,1722288639556,-575.36,0.00010999,2]
[333618279,1722288639565,-500.0,0.00010999,2]
[333618280,1722288639574,-500.0,0.00010999,2]
[333618282,1722288639583,-501.32,0.00010999,2]
[333618284,1722288639592,-500.0,0.00010999,2]
[333618286,1722288639601,-500.0,0.00010999,2]
[333618288,1722288639611,-72.90290028,0.00010999,2]
[333618291,1722288639622,-427.09709972,0.00010999,2]
[333618293,1722288639632,-500.0,0.00010999,2]
[333618295,1722288639641,-500.0,0.00010999,2]
[333618297,1722288639650,-500.0,0.00010999,2]
[333618299,1722288639659,-500.0,0.00010999,2]
[333618301,1722288639668,-434.17,0.00010999,2]
[333618303,1722288639677,-500.0,0.00010999,2]
[333618305,1722288639687,-607.57,0.00010999,2]
[333618306,1722288639695,-500.0,0.00010999,2]
[333618309,1722288639705,-500.0,0.00010999,2]
[333618311,1722288639714,-500.0,0.00010999,2]
[333618312,1722288639723,-500.0,0.00010999,2]
[333618314,1722288639733,-555.88,0.00010999,2]
[333618316,1722288639741,-500.0,0.00010999,2]
[333618318,1722288639750,-500.0,0.00010999,2]
[333618320,1722288639759,-500.0,0.00010999,2]
[333618322,1722288639768,-500.0,0.00010999,2]
[333618324,1722288639778,-500.0,0.00010999,2]
[333618326,1722288639786,-569.23260001,0.00010999,2]
[333618328,1722288639797,-79.93739999,0.00010999,2]
[333618330,1722288639808,-326.60743979,0.00010999,2]
[333618332,1722288639819,-500.0,0.00010999,2]
[333618334,1722288639828,-500.0,0.00010999,2]
[333618336,1722288639840,-500.0,0.00010999,2]
[333618338,1722288639849,-482.39557691,0.00010999,2]
[333618341,1722288639861,-17.60442309,0.00010999,2]
[333618343,1722288639870,-454.77,0.00010999,2]
[333618345,1722288639879,-493.1045162,0.00010999,2]
[333618347,1722288639890,-6.8954838,0.00010999,2]
[333618349,1722288639899,-500.0,0.00010999,2]
[333618350,1722288639908,-500.0,0.00010999,2]
[333618351,1722288639918,-500.0,0.00010999,2]
[333618352,1722288639927,-500.0,0.00010999,2]
[333618353,1722288639936,-500.0,0.00010999,2]
[333618354,1722288639946,-341.74,0.00010999,2]
[333618355,1722288639955,-500.0,0.00010999,2]
[333618356,1722288639964,-500.0,0.00010999,2]
[333618357,1722288639974,-500.0,0.00010999,2]
[333618358,1722288639983,-500.0,0.00010999,2]
[333618360,1722288639992,-502.9870837,0.00010999,2]
[333618361,1722288640001,-500.0,0.00010999,2]
[333618363,1722288640011,-500.0,0.00010999,2]
[333618367,1722288640021,-500.0,0.00010999,2]
[333618370,1722288640030,-396.17,0.00010999,2]
[333618372,1722288640039,-500.0,0.00010999,2]
[333618375,1722288640048,-500.0,0.00010999,2]
[333618376,1722288640057,-500.0,0.00010999,2]
[333618378,1722288640066,-500.0,0.00010999,2]
[333618380,1722288640075,-500.0,0.00010999,2]
[333618382,1722288640085,-500.0,0.00010999,2]
[333618384,1722288640094,-500.0,0.00010999,2]
[333618386,1722288640103,-500.0,0.00010999,2]
[333618388,1722288640112,-403.44,0.00010999,2]
[333618390,1722288640121,-500.0,0.00010999,2]
[333618392,1722288640130,-500.0,0.00010999,2]
[333618394,1722288640140,-500.0,0.00010999,2]
[333618395,1722288640149,-500.0,0.00010999,2]
[333618397,1722288640158,-500.0,0.00010999,2]
[333618399,1722288640168,-500.0,0.00010999,2]
[333618401,1722288640182,-500.0,0.00010999,2]
[333618403,1722288640192,-500.0,0.00010999,2]
[333618405,1722288640202,-500.0,0.00010999,2]
[333618407,1722288640211,-500.0,0.00010999,2]
[333618409,1722288640222,-500.0,0.00010999,2]
[333618411,1722288640231,-500.0,0.00010999,2]
[333618413,1722288640241,-500.0,0.00010999,2]
[333618415,1722288640251,-500.0,0.00010999,2]
[333618416,1722288640260,-427.15,0.00010999,2]
[333618418,1722288640269,-500.0,0.00010999,2]
[333618421,1722288640278,-500.0,0.00010999,2]
[333618422,1722288640288,-115.7614119,0.00010999,2]
[333618425,1722288640304,-384.2385881,0.00010999,2]
[333618428,1722288640314,-254.65531176,0.00010999,2]
[333618431,1722288640325,-245.34468824,0.00010999,2]
[333618434,1722288640335,-500.0,0.00010999,2]
[333618437,1722288640344,-399.34340747,0.00010999,2]
[333618439,1722288640353,-500.0,0.00010999,2]
[333618441,1722288640362,-53.35161351,0.00010999,2]
[333618443,1722288640374,-446.64838649,0.00010999,2]
[333618445,1722288640384,-500.0,0.00010999,2]
[333618447,1722288640394,-559.86,0.00010999,2]
[333618449,1722288640403,-500.0,0.00010999,2]
[333618451,1722288640413,-500.0,0.00010999,2]
[333618453,1722288640422,-500.0,0.00010999,2]
[333618455,1722288640431,-500.0,0.00010999,2]
[333618457,1722288640440,-500.0,0.00010999,2]
[333618459,1722288640450,-500.0,0.00010999,2]
[333618461,1722288640459,-280.50838216,0.00010999,2]
[333618463,1722288640471,-219.49161784,0.00010999,2]
[333618465,1722288640480,-500.0,0.00010999,2]
[333618467,1722288640490,-500.0,0.00010999,2]
[333618469,1722288640499,-517.33,0.00010999,2]
[333618471,1722288640508,-500.0,0.00010999,2]
[333618473,1722288640517,-500.0,0.00010999,2]
[333618475,1722288640527,-500.0,0.00010999,2]
[333618477,1722288640536,-347.47622685,0.00010999,2]
[333618480,1722288640552,-152.52377315,0.00010999,2]
[333618482,1722288640562,-500.0,0.00010999,2]
[333618484,1722288640571,-162.47622685,0.00010999,2]
[333618486,1722288640582,-337.52377315,0.00010999,2]
[333618488,1722288640592,-500.0,0.00010999,2]
[333618490,1722288640601,-500.0,0.00010999,2]
[333618492,1722288640611,-500.0,0.00010999,2]
[333618494,1722288640620,-500.0,0.00010999,2]
[333618496,1722288640630,-500.0,0.00010999,2]
[333618498,1722288640642,-481.47,0.00010999,2]
[333618500,1722288640651,-500.0,0.00010999,2]
[333618502,1722288640661,-500.0,0.00010999,2]
[333618504,1722288640670,-500.0,0.00010999,2]
[333618506,1722288640679,-500.0,0.00010999,2]
[333618508,1722288640689,-500.0,0.00010999,2]
[333618510,1722288640698,-500.0,0.00010999,2]
[333618512,1722288640707,-500.0,0.00010999,2]
[333618514,1722288640716,-364.63149661,0.00010999,2]
[333618516,1722288640725,-320.38,0.00010999,2]
[333618518,1722288640735,-500.0,0.00010999,2]
[333618520,1722288640744,-604.08612452,0.00010999,2]
[333618522,1722288640754,-500.0,0.00010999,2]
[333618524,1722288640763,-500.0,0.00010999,2]
[333618525,1722288640773,-500.0,0.00010999,2]
[333618527,1722288640782,-500.0,0.00010999,2]
[333618529,1722288640792,-500.0,0.00010999,2]
[333618531,1722288640801,-21.51760279,0.00010999,2]
[333618533,1722288640813,-478.48239721,0.00010999,2]
[333618535,1722288640824,-500.0,0.00010999,2]
[333618537,1722288640834,-500.0,0.00010999,2]
[333618539,1722288640843,-500.0,0.00010999,2]
[333618541,1722288640853,-500.0,0.00010999,2]
[333618543,1722288640862,-500.0,0.00010999,2]
[333618545,1722288640872,-500.0,0.00010999,2]
[333618547,1722288640882,-500.0,0.00010999,2]
[333618549,1722288640891,-150.0,0.00010999,2]
[333618551,1722288640900,-500.0,0.00010999,2]
[333618553,1722288640910,-500.0,0.00010999,2]
[333618555,1722288640919,-69.68394931,0.00010999,2]
[333618557,1722288640931,-233.14605069,0.00010999,2]
[333618559,1722288640940,-644.42,0.00010999,2]
[333618561,1722288640950,-500.0,0.00010999,2]
[333618563,1722288640960,-303.68394931,0.00010999,2]
[333618566,1722288640972,-196.31605069,0.00010999,2]
[333618568,1722288640981,-500.0,0.00010999,2]
[333618570,1722288640990,-616.29,0.00010999,2]
[333618572,1722288640999,-500.0,0.00010999,2]
[333618574,1722288641009,-417.05118911,0.00010999,2]
[333618576,1722288641020,-82.94881089,0.00010999,2]
[333618578,1722288641030,-500.0,0.00010999,2]
[333618580,1722288641039,-500.0,0.00010999,2]
[333618582,1722288641048,-500.0,0.00010999,2]
[333618584,1722288641058,-500.0,0.00010999,2]
[333618586,1722288641067,-500.0,0.00010999,2]
[333618588,1722288641076,-500.0,0.00010999,2]
[333618589,1722288641086,-159.08,0.00010999,2]
[333618591,1722288641095,-757.0,0.00011,2]
[333618593,1722288641105,-1967.56294947,0.00011,2]
[333618596,1722288641123,-10066.03213401,0.00011,2]
[333618599,1722288641134,-1112.64137499,0.00011,2]
[333618601,1722288641146,-3333.99104239,0.00011,2]
[333618603,1722288641157,-6395.11469946,0.00011,2]
[333618605,1722288641168,-418.51621512,0.00011,2]
[333618607,1722288641183,-15738.65643401,0.00011,2]
[333618609,1722288641194,-2936.09948492,0.00011,2]
[333618612,1722288641205,-3455.58653241,0.00011,2]
[333618629,1722288641386,-647.526547,0.00011,2]
[333618630,1722288641404,-739.70005,0.00011,2]
[333618727,1722288643250,-17808.97431362,0.00011,2]
[333618728,1722288643369,-562.8800002,0.00011,2]
[333618729,1722288643381,-10587.14206581,0.00011,2]
[333618730,1722288643489,-569.73,0.00011,2]
[333618731,1722288643501,-2847.59268996,0.00011,2]
[333618732,1722288643512,-1564.97247998,0.00011,2]
[333618733,1722288643553,-49322.89869974,0.00011,2]
[333618734,1722288643571,-6267.76693714,0.00011,2]
[333618735,1722288643582,-276.03969957,0.00011,2]
[333618736,1722288643593,-36538.2749634,0.00011,2]
[333618737,1722288643604,-64500.0,0.00011,2]
[333618738,1722288643616,-42348.00000033,0.00011,2]
[333618915,1722288646356,-1752.76552641,0.00011,2]
[333618916,1722288646367,-1135.63622236,0.00011,2]
[333618917,1722288646378,-3298.64723075,0.00011,2]
[333618918,1722288646390,-510.81023555,0.00011,2]
[333618919,1722288646401,-414.36,0.00011,2]
[333618920,1722288646418,-420.62036438,0.00011,2]
[333618921,1722288646430,-2247.44095932,0.00011,2]
[333618922,1722288646442,-877.554818,0.00011,2]
[333618923,1722288646453,-1711.97958983,0.00011,2]
[333618924,1722288646464,-32540.68456682,0.00011,2]
[333618925,1722288646475,-3214.37582023,0.00011,2]
[333618926,1722288646485,-15452.34955728,0.00011,2]
[333618927,1722288646496,-504.6728537,0.00011,2]
[333618928,1722288646507,-354.37716682,0.00011,2]
[333618929,1722288646518,-5571.95690293,0.00011,2]
[333618930,1722288646529,-2916.82030537,0.00011,2]
[333618931,1722288646541,-11075.30275092,0.00011,2]
[333618932,1722288646575,-4823.36786804,0.00011,2]
[333618933,1722288646589,-371.9075,0.00011,2]
[333618934,1722288646600,-672.47741342,0.00011,2]
[333618935,1722288646611,-784.08495585,0.00011,2]
[333618936,1722288646677,-575.55197003,0.00011,2]
[333618937,1722288646688,-1407.31275459,0.00011,2]
[333619085,1722288724042,150.0,1e-05,2]
[333619086,1722288724063,150.0,1e-05,2]
[333619087,1722288724084,86.966505,1e-05,2]
[333619091,1722288786622,7065.71423648,1e-05,2]
[333619092,1722288828124,150.0,1.212e-05,2]
[333619093,1722288828145,291.76565578,1.212e-05,2]
[333619094,1722288828166,5446.32954129,1.212e-05,2]
[333619095,1722288888126,150.0,1.212e-05,2]
[333619096,1722288888148,150.0,1.212e-05,2]
[333619097,1722288888170,5588.09519707,1.212e-05,2]
[333619099,1722288924113,150.0,1.469e-05,2]
[333619100,1722288924137,2917.69759767,1.469e-05,2]
[333619101,1722288937584,543.48724618,5e-05,2]
[333619102,1722288967124,3067.69759767,1.469e-05,2]
[333619103,1722289003138,3067.69759767,1.781e-05,2]
[333619104,1722289039131,3067.69759767,1.781e-05,2]
[333619107,1722289105144,3067.69759767,2.159e-05,2]
[333619112,1722289199551,1200.0,2.159e-05,2]
[333619114,1722289223478,947.60072722,2.617e-05,2]
[333619115,1722289242140,3067.69759767,2.617e-05,2]
[333619116,1722289283503,947.60072722,3.172e-05,2]
[333619117,1722289310960,175.3230289,5e-05,2]
[333619119,1722289340489,947.60072722,3.845e-05,2]
[333619120,1722289470168,3067.69759767,4.661e-05,2]
[333619121,1722289475492,947.60072722,4.661e-05,2]
[333619122,1722289535182,2893.27667427,4.661e-05,2]
[333619123,1722289540179,2893.27667427,5.65e-05,2]
[333619124,1722289573161,1256.16428941,5.65e-05,2]
[333619125,1722289830678,3067.69759767,5.65e-05,2]
[333619134,1722289835358,-947.60072722,6.848e-05,2]
[333619135,1722289835368,-300.0,8.218e-05,2]
[333619136,1722289835377,-163.69,8.219e-05,2]
[333619137,1722289835386,-953.43,8.219e-05,2]
[333619138,1722289835395,-420.0,9.04e-05,2]
[333619139,1722289835404,-1512.12,9.555e-05,2]
[333619140,1722289835413,-827.2,9.564e-05,2]
[333619141,1722289835422,-541.22,9.591e-05,2]
[333619142,1722289835431,-357.32,9.65e-05,2]
[333619143,1722289835440,-172.8,9.654e-05,2]
[333619144,1722289835449,-190.42,9.666e-05,2]
[333619145,1722289835458,-3513.70427859,9.673e-05,2]
[333619146,1722289835469,-412.61335126,9.673e-05,2]
[333619147,1722289835505,-4530.11197098,9.673e-05,2]
[333619148,1722289835539,-3244.55441955,9.673e-05,2]
[333619149,1722289835552,-12189.01597962,9.673e-05,2]
[333619150,1722289835561,-150.0,9.699e-05,2]
[333619151,1722289835571,-590.08,9.699e-05,2]
[333619152,1722289835580,-499.99,9.699e-05,2]
[333619153,1722289835593,-1836.58,9.7e-05,2]
[333619154,1722289835603,-250.0,9.71e-05,2]
[333619155,1722289835613,-532.35,9.718e-05,2]
[333619156,1722289835622,-189.17,9.73e-05,2]
[333619157,1722289835633,-159.12,9.734e-05,2]
[333619158,1722289835642,-351.12,9.741e-05,2]
[333619159,1722289835651,-159.12,9.783e-05,2]
[333619160,1722289835660,-804.90218376,9.79e-05,2]
[333619166,1722289835883,-2564.27809117,9.79e-05,2]
[333619167,1722289835894,-1502.89491141,9.79e-05,2]
[333619168,1722289835904,-150.0,9.799e-05,2]
[333619169,1722289835913,-3448.49002116,9.8e-05,2]
[333619170,1722289835935,-850.40212826,9.8e-05,2]
[333619171,1722289835947,-4082.05851106,9.8e-05,2]
[333619172,1722289835958,-716.18874666,9.8e-05,2]
[333619173,1722289835969,-619.14994573,9.8e-05,2]
[333619174,1722289835981,-505.38615579,9.8e-05,2]
[333619175,1722289835992,-3590.34889134,9.8e-05,2]
[333619176,1722289836002,-1821.71,9.8e-05,2]
[333619177,1722289836012,-212.02,9.865e-05,2]
[333619178,1722289836021,-500.0,9.9e-05,3]
[333619179,1722289836031,-587.0,9.944e-05,2]
[333619180,1722289836040,-1250.0,0.0001,2]
[333619181,1722289836050,-1000.0,0.0001,3]
[333619182,1722289836059,-728.21,0.0001,2]
[333619183,1722289836068,-1500.0,0.000101,3]
[333619184,1722289836078,-2000.0,0.000102,3]
[333619185,1722289836087,-728.21,0.0001029,2]
[333619186,1722289836096,-2500.0,0.000103,3]
[333619187,1722289836106,-1533.100242,0.00010328,2]
[333619188,1722289836115,-163.983566,0.00010328,2]